Workbook

Sheet Steekproefberekening
B2: Steekproefomvangcalculatie
B3: drs. N.S. van Leeuwen
B6: Toelichting
B7: Dit rekenblad is bedoeld om je inzicht te geven in de manieren om tot een steekproefomvang te komen.
B8: In dit rekenblad zijn drie methodes uitgewerkt. Algoritmisch, Via benadering en gebruik maken van de inverse gamma functie.
B9: Voor alle methodes houden we de onderstaande parameters aan.
B10: Populatie omvang | C10: 1000000
B11: Uitvoeringsmaterialiteit | C11: 50000
B12: Verwachte fout in % | C12: 0
B13: Betrouwbaarheidsinterval | C13: 0.95
B15: Algoritmisch
B16: Deze manier maakt gebruik van User Difende Funcsions (UDFs) om tot een uitkomst te komen
B17: Dit zijn VBA-scripts of Lambda-funcites die ertoe resulteren dat je een zelfgeschreven functie in Excel kunt gebruiken om tot de steekproefomvang te komen.
B18: De Lambda-functie is een nieuwe functionaliteit in Office 365 die werkt zonder VBA. VBA is in sommige organisaties uitgeschakeld vanwege veiligheidoverwegingen.
B19: Je ziet kleine verschillen tussen de uitkomsten. Dit komt omdat de berekeningen bij benadering gelijk aan elkaar zijn maar in sommige gevallen zie je grotere verschillen. Je zult echter zien dat Poisson veelal op een hogere steekproefomvang uit komt.
B20: Steekproefomvang: | C20: VBA | F20: Lambda
B21: Binominaal | C21: =BinomSample(C10,C11,C12,C13) -> 59 | F21: =Binom.sample(1,C11/C10,C12,C13) -> 59
B22: Poisson | C22: =PoissonSample(C10,C11,C12,C13) -> 60 | F22: =Poisson.sample(1,C11/C10,C12,C13) -> 60
B23: Hypergeometrisch | C23: =HypergeoSample(C10,C11,C12,C13) -> 59 | F23: =Hypergeom.Sample(1,C10,C11,C12,C13) -> 59
B26: Benadering
B27: Deze manier maakt inzichtelijk hoe je via benadering het de juiste steekproefomvang kunt bepalen.
B28: Deze tabel laat zien wat de betrouwbaarheid is voor de verdeling die links staat aangegeven, bij de steekproefomvang bij horizontaal staat aangegeven.
B29: Je ziet dat wanneer de steekproefomvang toe neemt, de betrouwbaarheid toe neemt.
B30: De cellen waarbij de betrouwbaarheid groter is dan de vereiste uit cel C13 worden groen gearceerd.
B31: Zo zie je dat wanneer je handmatig de steekproefomvang vergroot je uiteindelijk op een voldoende betrouwbare steekproefomvang uit komt.
B32: In het tabblad benadering is een vereenvoudigde versie hiervan opgenomen.
B34: Steekproef omvang | C34: =C22-3 -> 57 | D34: =C22-2 -> 58 | E34: =C22-1 -> 59 | F34: =C22 -> 60 | G34: =F34+1 -> 61 | H34: =G34+1 -> 62 | I34: 63 | J34: 64 | K34: 65 | L34: 66 | M34: 67 | N34: 68 | O34: 69 | P34: 70 | Q34: 71 | R34: 72 | S34: 73 | T34: 74 | U34: =T34+1 -> 75 | V34: =U34+1 -> 76 | W34: 77 | X34: 78 | Y34: 79 | Z34: 80 | AA34: 81 | AB34: 82 | AC34: 83 | AD34: =AC34+1 -> 84 | AE34: 85 | AF34: 86 | AG34: 87 | AH34: 88 | AI34: 89 | AJ34: 90 | AK34: 91 | AL34: 92 | AM34: 93 | AN34: 94 | AO34: 95 | AP34: 96 | AQ34: 97 | AR34: 98 | AS34: 99 | AT34: 100 | AU34: 101 | AV34: 102
B35: Binomiaal | C35: =1-_xlfn.BINOM.DIST(C41,C34,C40,TRUE) -> 0.946266454 | D35: 0.9489531313 | E35: 0.9515054748 | F35: 0.953930201 | G35: 0.956233691 | H35: 0.9584220064 | I35: 0.9605009061 | J35: 0.9624758608 | K35: 0.9643520677 | L35: 0.9661344644 | M35: 0.9678277411 | N35: 0.9694363541 | O35: 0.9709645364 | P35: 0.9724163096 | Q35: 0.9737954941 | R35: 0.9751057194 | S35: 0.9763504334 | T35: 0.9775329117 | U35: 0.9786562662 | V35: 0.9797234528 | W35: 0.9807372802 | X35: 0.9817004162 | Y35: 0.9826153954 | Z35: 0.9834846256 | AA35: 0.9843103943 | AB35: 0.9850948746 | AC35: 0.9858401309 | AD35: 0.9865481243 | AE35: 0.9872207181 | AF35: 0.9878596822 | AG35: 0.9884666981 | AH35: 0.9890433632 | AI35: 0.989591195 | AJ35: 0.9901116353 | AK35: 0.9906060535 | AL35: 0.9910757508 | AM35: 0.9915219633 | AN35: 0.9919458651 | AO35: 0.9923485719 | AP35: 0.9927311433 | AQ35: 0.9930945861 | AR35: 0.9934398568 | AS35: 0.993767864 | AT35: 0.9940794708 | AU35: 0.9943754972 | AV35: 0.9946567224
B36: Poisson | C36: =1-_xlfn.POISSON.DIST(C41,C40*C34,TRUE) -> 0.9421556791 | D36: 0.9449767799 | E36: 0.9476602941 | F36: 0.9502129316 | G36: 0.9526410756 | H36: 0.9549507976 | I36: 0.9571478731 | J36: 0.959237796 | K36: 0.9612257922 | L36: 0.9631168326 | M36: 0.9649156459 | N36: 0.96662673 | O36: 0.9682543636 | P36: 0.9698026166 | Q36: 0.9712753603 | R36: 0.9726762776 | S36: 0.9740088712 | T36: 0.9752764735 | U36: 0.9764822541 | V36: 0.9776292281 | W36: 0.9787202636 | X36: 0.9797580886 | Y36: 0.9807452982 | Z36: 0.9816843611 | AA36: 0.9825776254 | AB36: 0.9834273246 | AC36: 0.9842355835 | AD36: 0.9850044232 | AE36: 0.9857357661 | AF36: 0.986431441 | AG36: 0.9870931874 | AH36: 0.9877226601 | AI36: 0.988321433 | AJ36: 0.9888910035 | AK36: 0.9894327956 | AL36: 0.9899481643 | AM36: 0.9904383981 | AN36: 0.9909047229 | AO36: 0.9913483048 | AP36: 0.991770253 | AQ36: 0.9921716225 | AR36: 0.9925534169 | AS36: 0.9929165911 | AT36: 0.993262053 | AU36: 0.9935906666 | AV36: 0.9939032534
B37: Hypergeometrisch | C37: =1-_xlfn.HYPGEOM.DIST(C41,C34,C40*$C$10,$C$10,TRUE) -> 0.9462709676 | D37: 0.9489575724 | E37: 0.9515098418 | F37: 0.9539344928 | G37: 0.9562379063 | H37: 0.9584261445 | I37: 0.9605049661 | J37: 0.9624798423 | K37: 0.9643559702 | L37: 0.9661382876 | M37: 0.9678314849 | N37: 0.9694400185 | O37: 0.9709681214 | P37: 0.9724198155 | Q37: 0.9737989213 | R37: 0.9751090683 | S37: 0.9763537045 | T37: 0.9775361055 | U37: 0.9786593834 | V37: 0.9797264943 | W37: 0.9807402466 | X37: 0.9817033084 | Y37: 0.9826182144 | Z37: 0.9834873723 | AA37: 0.9843130697 | AB37: 0.9850974798 | AC37: 0.9858426669 | AD37: 0.9865505923 | AE37: 0.9872231192 | AF37: 0.9878620175 | AG37: 0.9884689689 | AH37: 0.9890455706 | AI37: 0.9895933403 | AJ37: 0.9901137196 | AK37: 0.9906080781 | AL37: 0.9910777169 | AM37: 0.9915238721 | AN37: 0.9919477179 | AO37: 0.9923503699 | AP37: 0.9927328877 | AQ37: 0.9930962782 | AR37: 0.9934414978 | AS37: 0.993769455 | AT37: 0.9940810131 | AU37: 0.9943769921 | AV37: 0.9946581709
B39: Verhoudingen binominaal
B40: P: materialiteitspercentage | C40: =$C$11/$C$10 -> 0.05 | D40: =$C$11/$C$10 -> 0.05 | E40: 0.05 | F40: 0.05 | G40: 0.05 | H40: 0.05 | I40: 0.05 | J40: 0.05 | K40: 0.05 | L40: 0.05 | M40: 0.05 | N40: 0.05 | O40: 0.05 | P40: 0.05 | Q40: 0.05 | R40: 0.05 | S40: 0.05 | T40: 0.05 | U40: 0.05 | V40: 0.05 | W40: 0.05 | X40: 0.05 | Y40: 0.05 | Z40: 0.05 | AA40: 0.05 | AB40: 0.05 | AC40: 0.05 | AD40: 0.05 | AE40: 0.05 | AF40: 0.05 | AG40: 0.05 | AH40: 0.05 | AI40: 0.05 | AJ40: 0.05 | AK40: 0.05 | AL40: 0.05 | AM40: 0.05 | AN40: 0.05 | AO40: 0.05 | AP40: 0.05 | AQ40: 0.05 | AR40: 0.05 | AS40: 0.05 | AT40: 0.05 | AU40: 0.05 | AV40: 0.05
B41: k: Verwachte fout in de steekproef, afgerond naar boven | C41: =ROUNDUP($C$12*C34,0) -> 0 | D41: =ROUNDUP($C$12*D34,0) -> 0 | E41: 0 | F41: 0 | G41: 0 | H41: 0 | I41: 0 | J41: 0 | K41: 0 | L41: 0 | M41: 0 | N41: 0 | O41: 0 | P41: 0 | Q41: 0 | R41: 0 | S41: 0 | T41: 0 | U41: 0 | V41: 0 | W41: 0 | X41: 0 | Y41: 0 | Z41: 0 | AA41: 0 | AB41: 0 | AC41: 0 | AD41: 0 | AE41: 0 | AF41: 0 | AG41: 0 | AH41: 0 | AI41: 0 | AJ41: 0 | AK41: 0 | AL41: 0 | AM41: 0 | AN41: 0 | AO41: 0 | AP41: 0 | AQ41: 0 | AR41: 0 | AS41: 0 | AT41: 0 | AU41: 0 | AV41: 0
B43: Inverse gamma functie
B44: Deze manier maakt gebruk van de inverse gamma functie.
B45: Je berekend hiermee de np-waarde uit. Dit is het gemiddelde aantat fouten in de steekproef.
B46: Je kunt de steekproefomvang uitrekenen dooor de np-waarde te delen door p.
B47: Je ziet dat je hiermee op dezelfde steekproefomvang uit komt als via de benaderingsmethode.
B48: Aantal fouten | C48: =ROUNDUP(C12*C22,0) -> 0
B49: NP-factor | C49: =_xlfn.GAMMA.INV(C13,C48+1,1) -> 2.995732274
B50: n | C50: =(C49/C40) -> 59.91464547

Sheet np-tabel
C2: np-tabel
C6: p | D6: 0.05
D7: 1-beta
C8: k | D8: 0.99 | E8: n | F8: 0.975 | G8: n | H8: 0.95 | I8: n | J8: 0.925 | K8: n | L8: 0.9 | M8: n
C9: 0 | D9: =_xlfn.GAMMA.INV(D$8,$C9+1,1) -> 4.605170186 | E9: =ROUNDUP(D9/$D$6,0) -> 93 | F9: =_xlfn.GAMMA.INV(F$8,$C9+1,1) -> 3.688879454 | G9: =ROUNDUP(F9/$D$6,0) -> 74 | H9: 2.995732274 | I9: =ROUNDUP(H9/$D$6,0) -> 60 | J9: 2.590267165 | K9: =ROUNDUP(J9/$D$6,0) -> 52 | L9: 2.302585093 | M9: =ROUNDUP(L9/$D$6,0) -> 47
C10: 1 | D10: =_xlfn.GAMMA.INV(D$8,$C10+1,1) -> 6.638352068 | E10: =ROUNDUP(D10/$D$6,0) -> 133 | F10: 5.571643391 | G10: 112 | H10: 4.743864518 | I10: =ROUNDUP(H10/$D$6,0) -> 95 | J10: 4.248141104 | K10: 85 | L10: 3.88972017 | M10: =ROUNDUP(L10/$D$6,0) -> 78
C11: 2 | D11: 8.405946915 | E11: 169 | F11: 7.224687668 | G11: 145 | H11: 6.295793622 | I11: =ROUNDUP(H11/$D$6,0) -> 126 | J11: 5.732972754 | K11: 115 | L11: 5.322320338 | M11: =ROUNDUP(L11/$D$6,0) -> 107
C12: 3 | D12: 10.04511751 | E12: 201 | F12: 8.76727307 | G12: 176 | H12: 7.753656528 | I12: =ROUNDUP(H12/$D$6,0) -> 156 | J12: 7.134871203 | K12: 143 | L12: 6.680783068 | M12: =ROUNDUP(L12/$D$6,0) -> 134
C13: 4 | D13: 11.60462558 | E13: 233 | F13: 10.24158868 | G13: 205 | H13: 9.153519027 | I13: =ROUNDUP(H13/$D$6,0) -> 184 | J13: 8.485682625 | K13: 170 | L13: 7.993589586 | M13: =ROUNDUP(L13/$D$6,0) -> 160
C14: 5 | D14: 13.10848365 | E14: 263 | F14: 11.66833208 | G14: 234 | H14: 10.51303491 | I14: =ROUNDUP(H14/$D$6,0) -> 211 | J14: 9.800985095 | K14: 197 | L14: 9.274673893 | M14: =ROUNDUP(L14/$D$6,0) -> 186
C15: 6 | D15: =_xlfn.GAMMA.INV(D$8,$C15+1,1) -> 14.57061887 | E15: 292 | F15: 13.05947402 | G15: 262 | H15: 11.84239565 | I15: =ROUNDUP(H15/$D$6,0) -> 237 | J15: 11.089765 | K15: 222 | L15: 10.53207211 | M15: =ROUNDUP(L15/$D$6,0) -> 211
C16: 7 | D16: 15.99996345 | E16: 320 | F16: 14.42267536 | G16: 289 | H16: 13.1481138 | I16: =ROUNDUP(H16/$D$6,0) -> 263 | J16: 12.35776094 | K16: 248 | L16: 11.77091446 | M16: =ROUNDUP(L16/$D$6,0) -> 236
C17: 8 | D17: 17.40265287 | E17: 349 | F17: 15.76318922 | G17: 316 | H17: 14.43464972 | I17: =ROUNDUP(H17/$D$6,0) -> 289 | J17: 13.60890093 | K17: 273 | L17: 12.99471154 | M17: =ROUNDUP(L17/$D$6,0) -> 260
C18: 9 | D18: 18.78311739 | E18: 376 | F18: 17.08480345 | G18: 342 | H18: 15.70521642 | I18: =ROUNDUP(H18/$D$6,0) -> 315 | J18: 14.84601315 | K18: 297 | L18: 14.20599029 | M18: =ROUNDUP(L18/$D$6,0) -> 285
C19: 10 | D19: 20.14468022 | E19: 403 | F19: 18.39035604 | G19: 368 | H19: 16.96221924 | I19: =ROUNDUP(H19/$D$6,0) -> 340 | J19: 16.07121391 | K19: 322 | L19: 15.40664117 | M19: =ROUNDUP(L19/$D$6,0) -> 309
C20: 11 | D20: 21.48991007 | E20: 430 | F20: 19.68203851 | G20: 394 | H20: 18.20751425 | I20: =ROUNDUP(H20/$D$6,0) -> 365 | J20: 17.28613571 | K20: 346 | L20: 16.59812214 | M20: =ROUNDUP(L20/$D$6,0) -> 332
C21: 12 | D21: 22.82084133 | E21: 457 | F21: 20.96158505 | G21: 420 | H21: 19.44256933 | I21: =ROUNDUP(H21/$D$6,0) -> 389 | J21: 18.49206917 | K21: 370 | L21: 17.78158564 | M21: =ROUNDUP(L21/$D$6,0) -> 356
C22: 13 | D22: 24.13911789 | E22: 483 | F22: 22.23039592 | G22: 445 | H22: 20.66856908 | I22: =ROUNDUP(H22/$D$6,0) -> 414 | J22: 19.69005556 | K22: 394 | L22: 18.95796127 | M22: =ROUNDUP(L22/$D$6,0) -> 380
C23: 14 | D23: 25.44609066 | E23: 509 | F23: 23.48962112 | G23: 470 | H23: 21.88648591 | I23: =ROUNDUP(H23/$D$6,0) -> 438 | J23: 20.88094944 | K23: 418 | L23: 20.12801187 | M23: =ROUNDUP(L23/$D$6,0) -> 403
C24: 15 | D24: 26.74288592 | E24: 535 | F24: 24.74021887 | G24: 495 | H24: 23.09712976 | I24: =ROUNDUP(H24/$D$6,0) -> 462 | J24: 22.06546241 | K24: 442 | L24: 21.29237254 | M24: =ROUNDUP(L24/$D$6,0) -> 426

Sheet benadering
B2: Steekproefomvangcalculatie
B3: drs. N.S. van Leeuwen
B6: Algoritmisch
B7: Populatie omvang | C7: 1000000
B8: Uitvoeringsmaterialiteit | C8: 50000
B9: Verwachte fout in % | C9: 0.01
B10: Betrouwbaarheidsinterval | C10: 0.95
B13: Benaderingsmethode
B14: Steekproef omvang | C14: 95 | D14: Verhoog de steekproefomvang tot het gewenste betrouwbaarheidspercentage wordt bereikt.
B15: Binominaal | C15: =1-_xlfn.BINOM.DIST(C21,C14,C20,TRUE) -> 0.9540914313
B16: Poisson | C16: =1-_xlfn.POISSON.DIST(C21,C20*C14,TRUE) -> 0.9502527526
B17: Hypergeometrisch | C17: =1-_xlfn.HYPGEOM.DIST(C21,C14,C20*$C$7,$C$7,TRUE) -> 0.9540984343
B19: Verhoudingen binominaal
B20: P: materialiteitspercentage | C20: =$C$8/$C$7 -> 0.05
B21: k: Verwachte fout in de steekproef, afgerond naar boven | C21: =ROUNDUP(C9*C14,0) -> 1
